fUST/lending_fUST_20250811
["ID","MTS","AMOUNT","RATE_DAILY","PERIOD"]
[378552531,1754911854890,-460.0,0.00020164,2]
[378552533,1754911854900,-460.0,0.00020164,2]
[378552535,1754911854911,-460.0,0.00020164,2]
[378552537,1754911854920,-460.0,0.00020164,2]
[378552539,1754911854930,-460.0,0.00020164,2]
[378552541,1754911854940,-441.61162198,0.00020164,2]
[378552543,1754911854949,-480.53,0.00020164,2]
[378552545,1754911854959,-460.0,0.00020164,2]
[378552546,1754911854969,-460.0,0.00020164,2]
[378552548,1754911854978,-460.0,0.00020164,2]
[378552550,1754911854988,-462.2,0.00020164,2]
[378552552,1754911854997,-460.0,0.00020164,2]
[378552554,1754911855007,-271.41383621,0.00020164,2]
[378552556,1754911855017,-460.0,0.00020164,2]
[378552558,1754911855026,-460.0,0.00020164,2]
[378552560,1754911855036,-460.0,0.00020164,2]
[378552562,1754911855045,-460.0,0.00020164,2]
[378552564,1754911855054,-460.0,0.00020164,2]
[378552566,1754911855063,-460.0,0.00020164,2]
[378552568,1754911855072,-460.0,0.00020164,2]
[378552570,1754911855083,-460.0,0.00020164,2]
[378552572,1754911855092,-460.0,0.00020164,2]
[378552574,1754911855101,-460.0,0.00020164,2]
[378552576,1754911855110,-460.0,0.00020164,2]
[378552578,1754911855119,-488.43,0.00020164,2]
[378552580,1754911855128,-897.9,0.00020164,2]
[378552582,1754911855138,-500.0,0.00020164,2]
[378552584,1754911855147,-460.0,0.00020164,2]
[378552586,1754911855156,-460.0,0.00020164,2]
[378552588,1754911855165,-566.66,0.00020164,2]
[378552590,1754911855174,-460.0,0.00020164,2]
[378552592,1754911855184,-460.0,0.00020164,2]
[378552594,1754911855193,-812.18,0.00020164,2]
[378552596,1754911855202,-460.0,0.00020164,2]
[378552598,1754911855212,-460.0,0.00020164,2]
[378552600,1754911855221,-460.0,0.00020164,2]
[378552602,1754911855230,-460.0,0.00020164,2]
[378552604,1754911855239,-460.0,0.00020164,2]
[378552606,1754911855248,-460.0,0.00020164,2]
[378552608,1754911855257,-460.0,0.00020164,2]
[378552610,1754911855266,-460.0,0.00020164,2]
[378552612,1754911855275,-460.0,0.00020164,2]
[378552614,1754911855284,-460.0,0.00020164,2]
[378552616,1754911855294,-460.0,0.00020164,2]
[378552618,1754911855303,-460.0,0.00020164,2]
[378552620,1754911855312,-460.0,0.00020164,2]
[378552622,1754911855321,-460.0,0.00020164,2]
[378552624,1754911855331,-460.0,0.00020164,2]
[378552626,1754911855340,-1294.86,0.00020164,2]
[378552628,1754911855350,-460.0,0.00020164,2]
[378552630,1754911855359,-460.0,0.00020164,2]
[378552632,1754911855369,-460.0,0.00020164,2]
[378552634,1754911855378,-460.0,0.00020164,2]
[378552636,1754911855388,-460.0,0.00020164,2]
[378552639,1754911855397,-468.1,0.00020164,2]
[378552641,1754911855406,-620.28,0.00020164,2]
[378552643,1754911855415,-800.93,0.00020164,2]
[378552645,1754911855424,-460.0,0.00020164,2]
[378552646,1754911855437,-460.0,0.00020164,2]
[378552649,1754911855446,-460.0,0.00020164,2]
[378552650,1754911855455,-460.0,0.00020164,2]
[378552653,1754911855465,-1568.2,0.00020164,2]
[378552654,1754911855475,-478.85364446,0.00020164,2]
[378552656,1754911855485,-964.1,0.00020164,2]
[378552658,1754911855494,-460.0,0.00020164,2]
[378552660,1754911855503,-460.0,0.00020164,2]
[378552662,1754911855512,-460.0,0.00020164,2]
[378552664,1754911855522,-460.0,0.00020164,2]
[378552666,1754911855531,-460.0,0.00020164,2]
[378552669,1754911855541,-460.0,0.00020164,2]
[378552671,1754911855551,-460.0,0.00020164,2]
[378552673,1754911855561,-460.0,0.00020164,2]
[378552675,1754911855570,-536.75,0.00020164,2]
[378552677,1754911855581,-460.0,0.00020164,2]
[378552678,1754911855592,-460.0,0.00020164,2]
[378552681,1754911855602,-460.0,0.00020164,2]
[378552683,1754911855611,-449.56105437,0.00020164,2]
[378552685,1754911855620,-460.0,0.00020164,2]
[378552687,1754911855635,-516.6,0.00020164,2]
[378552689,1754911855644,-707.47,0.00020164,2]
[378552691,1754911855653,-460.0,0.00020164,2]
[378552693,1754911855663,-460.0,0.00020164,2]
[378552695,1754911855672,-498.41,0.00020164,2]
[378552697,1754911855680,-461.08057795,0.00020164,2]
[378552699,1754911855690,-460.0,0.00020164,2]
[378552701,1754911855699,-580.00000001,0.00020164,2]
[378552703,1754911855708,-460.0,0.00020164,2]
[378552705,1754911855717,-460.0,0.00020164,2]
[378552707,1754911855726,-460.0,0.00020164,2]
[378552709,1754911855735,-460.0,0.00020164,2]
[378552711,1754911855744,-460.0,0.00020164,2]
[378552713,1754911855754,-460.0,0.00020164,2]
[378552716,1754911855766,-709.16,0.00020164,2]
[378552718,1754911855776,-460.0,0.00020164,2]
[378552720,1754911855786,-460.0,0.00020164,2]
[378552722,1754911855795,-460.0,0.00020164,2]
[378552724,1754911855805,-460.0,0.00020164,2]
[378552726,1754911855815,-626.01,0.00020164,2]
[378552728,1754911855828,-880.4,0.00020164,2]
[378552730,1754911855838,-460.0,0.00020164,2]
[378552732,1754911855847,-460.0,0.00020164,2]
[378552733,1754911855858,-9879.8,0.00020164,2]
[378552735,1754911855867,-460.0,0.00020164,2]
[378552737,1754911855877,-460.0,0.00020164,2]
[378552739,1754911855887,-608.49,0.00020164,2]
[378552741,1754911855897,-637.32,0.00020164,2]
[378552743,1754911855906,-460.0,0.00020164,2]
[378552745,1754911855916,-460.0,0.00020164,2]
[378552747,1754911855925,-460.0,0.00020164,2]
[378552749,1754911855934,-874.9,0.00020164,2]
[378552751,1754911855944,-2575.63,0.00020164,2]
[378552753,1754911855953,-460.0,0.00020164,2]
[378552755,1754911855964,-460.0,0.00020164,2]
[378552757,1754911855974,-460.0,0.00020164,2]
[378552759,1754911855984,-460.0,0.00020166,2]
[378552761,1754911855993,-460.0,0.00020166,2]
[378552763,1754911856003,-3129.05,0.00020166,2]
[378552765,1754911856013,-460.0,0.00020167,2]
[378552767,1754911856022,-460.0,0.00020167,2]
[378552769,1754911856032,-460.0,0.00020167,2]
[378552771,1754911856042,-460.0,0.00020167,2]
[378552773,1754911856051,-460.0,0.00020167,2]
[378552775,1754911856060,-3644.86,0.0002017,2]
[378552777,1754911856070,-460.0,0.0002017,2]
[378552779,1754911856081,-587.29,0.0002017,2]
[378552781,1754911856090,-2320.63,0.0002017,2]
[378552783,1754911856100,-1808.53,0.0002017,2]
[378552785,1754911856109,-941.6,0.0002017,2]
[378552787,1754911856119,-460.0,0.0002017,2]
[378552789,1754911856128,-890.12,0.0002017,2]
[378552791,1754911856138,-460.0,0.0002017,2]
[378552793,1754911856147,-3017.94,0.0002017,2]
[378552795,1754911856156,-460.0,0.0002017,2]
[378552797,1754911856167,-460.0,0.00020171,2]
[378552799,1754911856176,-460.0,0.00020171,2]
[378552801,1754911856185,-460.0,0.00020171,2]
[378552803,1754911856195,-460.0,0.00020171,2]
[378552805,1754911856205,-542.48,0.00020171,2]
[378552807,1754911856214,-151.0,0.00020171,2]
[378552808,1754911856223,-151.0,0.00020171,2]
[378552810,1754911856233,-151.0,0.00020171,2]
[378552812,1754911856242,-500.0,0.00020173,2]
[378552814,1754911856252,-500.0,0.00020173,2]
[378552816,1754911856261,-500.0,0.00020173,2]
[378552818,1754911856271,-500.0,0.00020173,2]
[378552820,1754911856280,-500.0,0.00020173,2]
[378552822,1754911856290,-500.0,0.00020173,2]
[378552824,1754911856299,-500.0,0.00020173,2]
[378552826,1754911856308,-500.0,0.00020173,2]
[378552828,1754911856317,-500.0,0.00020173,2]
[378552830,1754911856326,-500.0,0.00020173,2]
[378552832,1754911856336,-500.0,0.00020173,2]
[378552834,1754911856346,-500.0,0.00020173,2]
[378552836,1754911856355,-500.0,0.00020173,2]
[378552838,1754911856364,-500.0,0.00020173,2]
[378552840,1754911856374,-500.0,0.00020173,2]
[378552842,1754911856384,-500.0,0.00020173,2]
[378552844,1754911856393,-309.23826813,0.00020173,2]
[378552846,1754911856402,-158.46444877,0.00020173,2]
[378552848,1754911856411,-500.0,0.00020173,2]
[378552850,1754911856420,-500.0,0.00020173,2]
[378552852,1754911856429,-500.0,0.00020173,2]
[378552854,1754911856438,-500.0,0.00020173,2]
[378552856,1754911856447,-500.0,0.00020173,2]
[378552857,1754911856455,-157.04278845,0.00020173,2]
[378552859,1754911856465,-500.0,0.00020173,2]
[378552861,1754911856474,-500.0,0.00020173,2]
[378552863,1754911856483,-500.0,0.00020173,2]
[378552865,1754911856493,-500.0,0.00020173,2]
[378552867,1754911856502,-525.683001,0.00020187,2]
[378552869,1754911856511,-460.0,0.00020219,2]
[378552871,1754911856521,-460.0,0.00020219,2]
[378552873,1754911856530,-460.0,0.00020219,2]
[378552875,1754911856539,-460.0,0.00020219,2]
[378552877,1754911856549,-460.0,0.00020219,2]
[378552879,1754911856558,-478.30018914,0.00020219,2]
[378552881,1754911856567,-460.0,0.00020219,2]
[378552883,1754911856579,-460.0,0.00020219,2]
[378552885,1754911856589,-706.34,0.00020219,2]
[378552887,1754911856598,-460.0,0.00020219,2]
[378552889,1754911856607,-163.20118164,0.00020219,2]
[378552891,1754911856618,-500.0,0.0002022,2]
[378552893,1754911856627,-151.0,0.00020267,2]
[378552895,1754911856637,-498.75,0.00020269,2]
[378552897,1754911856647,-198.44932677,0.00020318,2]
[378552899,1754911856657,-460.0,0.00020318,2]
[378552901,1754911856666,-460.0,0.00020318,2]
[378552903,1754911856675,-593.01,0.00020318,2]
[378552905,1754911856684,-1630.85,0.00020318,2]
[378552907,1754911856693,-513.26,0.00020318,2]
[378552909,1754911856703,-1000.0,0.00020321,2]
[378552911,1754911856711,-501.14541372,0.00020321,2]
[378552913,1754911856721,-1000.0,0.00020321,2]
[378552915,1754911856730,-1000.0,0.00020321,2]
[378552917,1754911856741,-1000.0,0.00020321,2]
[378552919,1754911856751,-1000.0,0.00020321,2]
[378552921,1754911856760,-1000.0,0.00020321,2]
[378552923,1754911856769,-1000.0,0.00020321,2]
[378552925,1754911856778,-1000.41157304,0.00020321,2]
[378552927,1754911856787,-1024.05187701,0.00020321,2]
[378552929,1754911856797,-1000.0,0.00020321,2]
[378552931,1754911856806,-472.1751104,0.00020321,2]
[378552933,1754911856815,-516.7285694,0.00020321,2]
[378552935,1754911856829,-1000.0,0.00020321,2]
[378552937,1754911856838,-1000.0,0.00020321,2]
[378552939,1754911856848,-1000.0,0.00020321,2]
[378552941,1754911856857,-816.07866541,0.00020321,2]
[378552943,1754911856868,-1005.31612828,0.00020321,2]
[378552944,1754911856878,-500.24735261,0.00020321,2]
[378552946,1754911856887,-1000.0,0.00020321,2]
[378552948,1754911856897,-1000.0,0.00020321,2]
[378552950,1754911856908,-504.6663389,0.00020321,2]
[378552952,1754911856917,-1000.0,0.00020321,2]
[378552954,1754911856926,-964.7644889,0.00020321,2]
[378552956,1754911856936,-1112.5168597,0.00020321,2]
[378552958,1754911856945,-698.31463455,0.00020321,2]
[378552960,1754911856955,-1000.0,0.00020321,2]
[378552962,1754911856965,-1000.0,0.00020321,2]
[378552964,1754911856974,-925.95840349,0.00020321,2]
[378552966,1754911856984,-501.80345153,0.00020321,2]
[378552969,1754911856994,-151.0,0.000204,3]
[378552971,1754911857008,-151.0,0.00020417,2]
[378552973,1754911857019,-500.0,0.00020417,2]
[378552975,1754911857028,-151.0,0.00020417,2]
[378552977,1754911857039,-500.0,0.00020417,2]
[378552979,1754911857050,-500.0,0.00020417,2]
[378552981,1754911857061,-151.0,0.00020417,2]
[378552983,1754911857071,-151.0,0.00020417,2]
[378552985,1754911857084,-151.0,0.00020417,2]
[378552987,1754911857094,-151.0,0.00020417,2]
[378552989,1754911857105,-151.0,0.00020417,2]
[378552991,1754911857115,-1075.22,0.00020417,2]
[378552993,1754911857125,-696.49,0.00020417,2]
[378552995,1754911857134,-460.0,0.00020417,2]
[378552997,1754911857148,-460.0,0.00020417,2]
[378552999,1754911857161,-3485.33,0.00020417,2]
[378553002,1754911857172,-460.0,0.00020417,2]
[378553004,1754911857183,-626.74,0.00020417,2]
[378553006,1754911857193,-460.0,0.00020417,2]
[378553008,1754911857203,-3317.92,0.00020417,2]
[378553010,1754911857213,-460.0,0.00020417,2]
[378553012,1754911857222,-460.0,0.00020417,2]
[378553014,1754911857232,-798.43,0.00020417,2]
[378553016,1754911857242,-1060.06,0.00020417,2]
[378553018,1754911857252,-460.0,0.00020417,2]
[378553019,1754911857261,-460.0,0.00020417,2]
[378553020,1754911857270,-500.0,0.00020418,2]
[378553021,1754911857280,-500.40964155,0.00020418,2]
[378553022,1754911857290,-460.0,0.00020418,2]
[378553023,1754911857299,-460.0,0.00020418,2]
[378553024,1754911857309,-5064.63,0.00020418,2]
[378553025,1754911857319,-460.0,0.00020418,2]
[378553026,1754911857330,-460.0,0.00020418,2]
[378553027,1754911857339,-668.1,0.00020418,2]
[378553028,1754911857349,-627.25,0.00020419,2]
[378553029,1754911857359,-460.0,0.00020419,2]
[378553030,1754911857368,-510.77,0.00020419,2]
[378553031,1754911857378,-604.58,0.00020419,2]
[378553032,1754911857388,-460.0,0.00020419,2]
[378553033,1754911857398,-460.0,0.00020419,2]
[378553034,1754911857407,-460.0,0.00020419,2]
[378553035,1754911857417,-1191.74,0.00020419,2]
[378553036,1754911857427,-811.02,0.00020419,2]
[378553037,1754911857436,-460.0,0.00020419,2]
[378553038,1754911857445,-460.0,0.00020419,2]
[378553039,1754911857455,-460.0,0.00020419,2]
[378553040,1754911857465,-460.0,0.00020419,2]
[378553041,1754911857474,-611.25,0.00020419,2]
[378553042,1754911857484,-460.0,0.00020419,2]
[378553043,1754911857494,-906.56,0.00020419,2]
[378553044,1754911857504,-460.0,0.00020419,2]
[378553045,1754911857514,-472.21973355,0.00020419,2]
[378553046,1754911857523,-460.0,0.00020419,2]
[378553047,1754911857533,-460.0,0.00020419,2]
[378553048,1754911857543,-460.0,0.00020419,2]
[378553049,1754911857552,-460.0,0.00020419,2]
[378553050,1754911857561,-460.0,0.00020419,2]
[378553051,1754911857572,-591.59,0.00020419,2]
[378553052,1754911857582,-460.0,0.00020419,2]
[378553053,1754911857592,-1481.77,0.00020419,2]
[378553054,1754911857602,-460.0,0.00020419,2]
[378553055,1754911857612,-1236.16,0.00020419,2]
[378553056,1754911857622,-460.0,0.00020419,2]
[378553057,1754911857632,-1763.46,0.00020419,2]
[378553058,1754911857642,-460.0,0.00020419,2]
[378553059,1754911857651,-460.0,0.00020419,2]
[378553060,1754911857661,-460.0,0.00020419,2]
[378553062,1754911857672,-460.0,0.00020419,2]
[378553064,1754911857681,-499.72968896,0.00020419,2]
[378553066,1754911857691,-1101.95,0.00020419,2]
[378553068,1754911857701,-460.0,0.00020419,2]
[378553070,1754911857711,-933.81,0.00020419,2]
[378553072,1754911857721,-460.0,0.00020419,2]
[378553074,1754911857731,-460.0,0.00020419,2]
[378553076,1754911857740,-460.0,0.00020419,2]
[378553078,1754911857750,-460.0,0.00020419,2]
[378553080,1754911857761,-460.0,0.00020419,2]
[378553082,1754911857771,-460.0,0.00020419,2]
[378553084,1754911857780,-460.0,0.00020419,2]
[378553086,1754911857790,-460.0,0.00020419,2]
[378553088,1754911857800,-460.0,0.00020419,2]
[378553091,1754911857810,-460.0,0.00020419,2]
[378553093,1754911857825,-1106.95,0.00020419,2]
[378553094,1754911857836,-460.0,0.00020419,2]
[378553096,1754911857846,-550.19,0.00020419,2]
[378553099,1754911857856,-945.52,0.00020419,2]
[378553101,1754911857867,-460.0,0.00020419,2]
[378553103,1754911857877,-460.0,0.00020419,2]
[378553105,1754911857887,-214.1422116,0.00020419,2]
[378553107,1754911857898,-823.32,0.00020419,2]
[378553109,1754911857909,-500.63,0.00020419,2]
[378553111,1754911857921,-460.0,0.00020419,2]
[378553113,1754911857931,-460.0,0.00020419,2]
[378553115,1754911857941,-460.0,0.00020419,2]
[378553117,1754911857950,-460.02790009,0.00020419,2]
[378553119,1754911857960,-687.98,0.00020419,2]
[378553121,1754911857970,-460.0,0.00020419,2]
[378553123,1754911857980,-460.0,0.00020419,2]
[378553126,1754911857990,-1108.68,0.00020419,2]
[378553128,1754911858001,-957.47,0.00020419,2]
[378553130,1754911858011,-460.0,0.00020419,2]
[378553131,1754911858021,-460.0,0.00020419,2]
[378553133,1754911858031,-548.97,0.00020419,2]
[378553136,1754911858041,-460.0,0.00020419,2]
[378553138,1754911858052,-672.43,0.00020419,2]
[378553140,1754911858061,-460.0,0.00020419,2]
[378553142,1754911858071,-465.12132,0.00020419,2]
[378553144,1754911858082,-460.0,0.00020419,2]
[378553146,1754911858092,-460.0,0.00020419,2]
[378553148,1754911858102,-725.29,0.00020419,2]
[378553150,1754911858112,-460.0,0.00020419,2]
[378553152,1754911858121,-500.0,0.00020421,2]
[378553154,1754911858131,-1000.0,0.00020421,2]
[378553156,1754911858141,-575.04094587,0.00020421,2]
[378553158,1754911858151,-506.26757196,0.00020421,2]
[378553160,1754911858161,-1000.0,0.00020421,2]
[378553162,1754911858170,-1000.0,0.00020421,2]
[378553164,1754911858180,-1000.0,0.00020421,2]
[378553166,1754911858190,-1000.0,0.00020421,2]
[378553168,1754911858203,-250.0,0.00020421,2]
[378553170,1754911858214,-1000.0,0.00020421,2]
[378553172,1754911858225,-1000.0,0.00020421,2]
[378553174,1754911858235,-1000.0,0.00020421,2]
[378553176,1754911858244,-1000.0,0.00020421,2]
[378553178,1754911858254,-656.94447259,0.00020421,2]
[378553215,1754911858594,-2021.89,0.00019894,2]
[378553217,1754911858603,-460.0,0.00020044,2]
[378553219,1754911858613,-343.05552741,0.00020421,2]
[378553221,1754911858623,-838.41744348,0.00020421,2]
[378553223,1754911858633,-1000.0,0.00020421,2]
[378553225,1754911858643,-1000.0,0.00020421,2]
[378553228,1754911858653,-1000.0,0.00020421,2]
[378553230,1754911858663,-1000.0,0.00020421,2]
[378553232,1754911858672,-1000.0,0.00020421,2]
[378553234,1754911858682,-1000.0,0.00020421,2]
[378553236,1754911858691,-1000.0,0.00020421,2]
[378553238,1754911858701,-349.32952212,0.00020421,2]
[378553240,1754911858711,-1059.62308392,0.00020421,2]
[378553261,1754911858932,-1048.50500087,0.00020421,2]
[378553263,1754911858942,-203.85112997,0.00020421,2]
[378553265,1754911858952,-1000.0,0.00020421,2]
[378553267,1754911858961,-1000.0,0.00020421,2]
[378553269,1754911858971,-1069.62599455,0.00020421,2]
[378553271,1754911858980,-1000.0,0.00020421,2]
[378553273,1754911858990,-1000.0,0.00020421,2]
[378553275,1754911858999,-1000.0,0.00020421,2]
[378553277,1754911859009,-1000.0,0.00020421,2]
[378553279,1754911859018,-1000.0,0.00020421,2]
[378553281,1754911859028,-1000.0,0.00020421,2]
[378553283,1754911859037,-1000.0,0.00020421,2]
[378553285,1754911859046,-1000.0,0.00020421,2]
[378553287,1754911859055,-206.18225402,0.00020421,2]
[378553289,1754911859064,-1000.0,0.00020421,2]
[378553291,1754911859074,-1000.0,0.00020421,2]
[378553293,1754911859084,-501.19670282,0.00020421,2]
[378553295,1754911859094,-1000.0,0.00020421,2]
[378553297,1754911859103,-1000.0,0.00020421,2]
[378553299,1754911859112,-1000.0,0.00020421,2]
[378553301,1754911859122,-960.07199425,0.00020421,2]
[378553303,1754911859131,-1000.0,0.00020421,2]
[378553305,1754911859141,-1000.49069383,0.00020421,2]
[378553307,1754911859150,-506.22361131,0.00020421,2]
[378553309,1754911859159,-1000.0,0.00020421,2]
[378553311,1754911859168,-1000.0,0.00020421,2]
[378553313,1754911859179,-1000.0,0.00020421,2]
[378553315,1754911859188,-1000.0,0.00020421,2]
[378553317,1754911859197,-659.62075682,0.00020421,2]
[378553319,1754911859206,-1000.0,0.00020421,2]
[378553321,1754911859215,-1000.0,0.00020421,2]
[378553323,1754911859225,-1000.0,0.00020421,2]
[378553325,1754911859234,-460.0,0.00020427,2]
[378553327,1754911859243,-460.0,0.00020427,2]
[378553329,1754911859252,-460.0,0.00020427,2]
[378553331,1754911859261,-962.94,0.00020427,2]
[378553333,1754911859270,-2604.77,0.00020427,2]
[378553335,1754911859280,-460.0,0.00020427,2]
[378553337,1754911859290,-460.0,0.00020428,2]
[378553339,1754911859299,-460.0,0.00020428,2]
[378553341,1754911859309,-460.0,0.00020428,2]
[378553343,1754911859318,-468.73113012,0.00020428,2]
[378553345,1754911859327,-460.0,0.00020428,2]
[378553347,1754911859338,-467.90353479,0.00020428,2]
[378553349,1754911859348,-460.0,0.00020428,2]
[378553351,1754911859357,-460.0,0.00020428,2]
[378553353,1754911859366,-460.0,0.00020428,2]
[378553355,1754911859375,-460.0,0.00020428,2]
[378553357,1754911859384,-508.24,0.00020428,2]
[378553359,1754911859393,-460.0,0.00020428,2]
[378553361,1754911859403,-460.0,0.00020428,2]
[378553363,1754911859412,-256.6942962,0.00020428,2]
[378553365,1754911859421,-460.0,0.00020428,2]
[378553367,1754911859430,-460.0,0.00020428,2]
[378553369,1754911859440,-460.0,0.00020428,2]
[378553371,1754911859449,-601.12,0.00020428,2]
[378553373,1754911859458,-612.38717565,0.00020428,2]
[378553379,1754911859512,3746.0189685,0.0001905,2]
[378553404,1754911859768,-206.90154381,0.00019671,2]
[378553414,1754911859883,-253.09845619,0.00019671,2]
[378553416,1754911859893,-460.33332976,0.00019671,2]
[378553418,1754911859903,-1121.45,0.0001987,2]
[378553420,1754911859913,-460.0,0.00019879,2]
[378553422,1754911859923,-2021.89,0.00019894,2]
[378553424,1754911859933,-2021.89,0.00019894,2]
[378553426,1754911859942,-2021.89,0.00019894,2]
[378553428,1754911859951,-2021.89,0.00019894,2]
[378553429,1754911859962,-2021.89,0.00019894,2]
[378553431,1754911859971,-2021.89,0.00019894,2]
[378553432,1754911859980,-2021.89,0.00019894,2]
[378553433,1754911859991,-2022.04787662,0.00019894,2]
[378553434,1754911860000,-1121.45,0.00020144,2]
[378553435,1754911860011,-460.0,0.00020318,2]
[378553436,1754911860020,-1121.45,0.00020418,2]
[378553437,1754911860030,-127.01282435,0.00020428,2]
[378553438,1754911860041,-460.0,0.00020428,2]
[378553439,1754911860051,-460.0,0.00020428,2]
[378553440,1754911860062,-478.95,0.00020428,2]
[378553441,1754911860071,-460.0,0.00020428,2]
[378553443,1754911860082,-586.64,0.00020428,2]
[378553445,1754911860092,-460.0,0.00020428,2]
[378553447,1754911860102,-460.0,0.00020428,2]
[378553449,1754911860112,-460.0,0.00020428,2]
[378553451,1754911860121,-460.0,0.00020428,2]
[378553453,1754911860131,-460.0,0.00020428,2]
[378553455,1754911860141,-460.0,0.00020428,2]
[378553457,1754911860150,-460.0,0.00020428,2]
[378553459,1754911860159,-460.0,0.00020428,2]
[378553460,1754911860168,-460.0,0.00020428,2]
[378553461,1754911860178,-460.0,0.00020428,2]
[378553462,1754911860187,-460.0,0.00020428,2]
[378553463,1754911860196,-469.28924746,0.00020428,2]
[378553464,1754911860206,-460.0,0.00020428,2]
[378553465,1754911860215,-460.0,0.00020428,2]
[378553466,1754911860224,-460.0,0.00020428,2]
[378553467,1754911860234,-460.0,0.00020428,2]
[378553468,1754911860244,-460.0,0.00020428,2]
[378553469,1754911860253,-460.0,0.00020428,2]
[378553470,1754911860263,-460.0,0.00020428,2]
[378553471,1754911860273,-460.0,0.00020428,2]
[378553472,1754911860283,-460.0,0.00020428,2]
[378553473,1754911860293,-460.0,0.00020428,2]
[378553474,1754911860308,-460.0,0.00020428,2]
[378553475,1754911860318,-460.0,0.00020428,2]
[378553476,1754911860328,-460.0,0.00020428,2]
[378553477,1754911860339,-460.0,0.00020428,2]
[378553478,1754911860348,-460.0,0.00020428,2]
[378553479,1754911860357,-502.37582004,0.00020428,2]
[378553480,1754911860366,-460.0,0.00020428,2]
[378553481,1754911860376,-460.0,0.00020428,2]
[378553482,1754911860385,-460.0,0.00020428,2]
[378553483,1754911860395,-460.0,0.00020428,2]
[378553484,1754911860405,-460.0,0.00020428,2]
[378553485,1754911860414,-460.0,0.00020428,2]
[378553486,1754911860423,-460.0,0.00020428,2]
[378553487,1754911860433,-1204.29,0.00020428,2]
[378553488,1754911860442,-460.0,0.00020428,2]
[378553489,1754911860453,-460.0,0.00020428,2]
[378553490,1754911860463,-460.0,0.00020428,2]
[378553491,1754911860472,-460.0,0.00020428,2]
[378553492,1754911860483,-460.0,0.00020428,2]
[378553493,1754911860492,-467.52181424,0.00020428,2]
[378553494,1754911860502,-467.30455541,0.00020428,2]
[378553495,1754911860511,-489.09,0.00020428,2]
[378553496,1754911860521,-460.0,0.00020428,2]
[378553497,1754911860531,-460.0,0.00020428,2]
[378553498,1754911860540,-460.0,0.00020428,2]
[378553499,1754911860550,-460.0,0.00020428,2]
[378553500,1754911860559,-810.1,0.00020428,2]
[378553501,1754911860568,-460.0,0.00020428,2]
[378553502,1754911860578,-738.36,0.00020428,2]
[378553503,1754911860588,-460.0,0.00020428,2]
[378553504,1754911860598,-460.0,0.00020428,2]
[378553505,1754911860607,-460.0,0.00020428,2]
[378553506,1754911860617,-460.0,0.00020428,2]
[378553507,1754911860627,-522.3,0.00020428,2]
[378553508,1754911860637,-460.0,0.00020428,2]
[378553509,1754911860646,-951.25,0.00020428,2]
[378553510,1754911860656,-460.0,0.00020428,2]
[378553511,1754911860664,-460.0,0.00020428,2]
[378553512,1754911860674,-460.0,0.00020428,2]
[378553513,1754911860683,-557.77228213,0.00020428,2]